Cogmind - Beta 17 @@@ ROGUE MODE // 2026.07.07 @ 15:29:57 Player: mbomb Result: Destroyed by S-27 Virus with Autogun Performance ------------- Evolutions (5) 2500 Regions Visited (4) 800 Robots Destroyed (25) 125 Value Destroyed (571) 571 Prototype IDs (0) 0 Alien Tech Used (0) 0 Bonus (-14) -14 TOTAL SCORE: 3982 Bonus ------- Friendly Fire -14 Cogmind --------- Core Integrity 0/1000 Matter 39/300 Energy 100/100 System Corruption 0% Temperature Cool (0) Movement Core (50) Location -5/Factory Parts ------- > --- POWER (2) -------- (None) > --- PROPULSION (4) --- (None) > --- UTILITY (8) ------ (None) > --- WEAPON (3) ------- (None) > --- INVENTORY (5) ---- Improved Cooling System Medium Storage Unit Subdweller Laser Advanced Plasma Cannon Grenade Launcher Peak State ------------ > --- POWER ------------ Fusion Compressor > --- PROPULSION ------- Aluminum Leg Aluminum Leg Carbon-fiber Leg > --- UTILITY ---------- Advanced Heat Sink Medium Storage Unit Targeting Computer Core Shielding Hardened Medium Armor Plating > --- WEAPON ----------- Assault Rifle Barrage Gun Heavy Machine Gun > --- INVENTORY -------- Improved Cooling System Medium Storage Unit Subdweller Laser Gauss Cannon Grenade Launcher [Rating: 31] Favorites ----------- Power Light Ion Engine Engine Light Ion Engine Power Core Fusion Compressor Propulsion Aluminum Leg Treads Light Treads Leg Aluminum Leg Utility Medium Storage Unit Device Sensor Array Storage Medium Storage Unit Processor Targeting Computer Protection Hardened Medium Armor Plating Weapon Assault Rifle Energy Gun Subdweller Laser Energy Cannon Beam Cannon Ballistic Gun Assault Rifle Build | -11 -10 -10 -7 -5 ------- Run | Yrd Mat Sub Scr Fac Slots Evolved 10 | . . . . 10 Power 1 | . . . . 1 Propulsion 2 | . . . . 2 Utility 6 | . . . . 6 Weapon 1 | . . . . 1 Parts Attached 28 | 5 10 5 1 7 Power 4 | 1 1 1 . 1 Engine 3 | 1 1 1 . . Core 1 | . . . . 1 Reactor . | . . . . . Propulsion 5 | 2 2 . . 1 Treads 2 | 2 . . . . Leg 3 | . 2 . . 1 Wheel . | . . . . . Hover . | . . . . . Flight . | . . . . . Utility 9 | 1 3 . 1 4 Device 3 | . 1 . . 2 Storage 3 | 1 1 . . 1 Processor 1 | . . . . 1 Hackware . | . . . . . Protection 2 | . 1 . 1 . Artifact . | . . . . . Weapon 10 | 1 4 4 . 1 Energy Gun 2 | . . 2 . . Energy Cannon 1 | . 1 . . . Ballistic Gun 7 | 1 3 2 . 1 Ballistic Cannon . | . . . . . Launcher . | . . . . . Special Weapon . | . . . . . Impact Weapon . | . . . . . Slashing Weapon . | . . . . . Piercing Weapon . | . . . . . Special Melee Weapon . | . . . . . Unidentified Prototypes . | . . . . . Parts Lost 10 | . 1 2 . 7 Power 1 | . . 1 . . Propulsion 3 | . . . . 3 Utility 2 | . 1 . . 1 Weapon 4 | . . 1 . 3 Highest Loss Streak 7 | . 1 2 . 7 To Critical Strikes . | . . . . . Average Backups 5 | . 2 5 9 5 Power . | . . . . . Propulsion . | . . . . . Utility 2 | . 1 3 4 2 Weapon 3 | . . 2 5 3 Tool/Special . | . . . . . Unused Backups 6 | . . . 2 4 Power . | . . . . . Propulsion . | . . . . . Utility 3 | . . . 2 1 Weapon 3 | . . . . 3 Tool/Special . | . . . . . Average Slot Usage (%) 70 | . 80 96 57 55 Engine 4 | . 9 11 . . Treads 8 | . 21 . . . Leg 16 | . 5 28 28 12 Device 3 | . 7 . . 4 Storage 12 | . 14 14 14 5 Protection 8 | . 1 14 14 8 Energy Gun 1 | . . 17 . . Energy Cannon 3 | . 8 1 . . Ballistic Gun 7 | . 11 7 . 12 Peak Build Rating 31 | 5 7 12 10 31 Average Rating 9 | 3 5 9 7 23 On Entrance 6 | . 5 7 10 8 Avg Prop Armor Cover (%) . | . . . . . Naked Turns 20 | . . . . 20 Heaviest Build 36 | 12 19 24 18 36 Greatest Support 40 | 40 40 20 20 35 Greatest Overweight (x) 6 | . 5 1 . 6 Average Overweight (x) . | . . . . . Largest Inventory Capacity 10 | 8 10 10 10 10 Average Capacity 9 | 6 9 10 10 9 Most Carried 10 | 2 8 8 10 9 Average Carried 5 | . 2 6 9 5 Final Capacity 10 | 8 10 10 10 5 Final Carried 10 | 1 4 8 10 5 Class Distribution -------------------- 88% | Mutant 11% | Tank Dominant Class ---------------- Mutant | -10/Materials Mutant | -10/Subcaves Mutant | -7/Scraptown Tank | -5/Factory Resources | -11 -10 -10 -7 -5 ----------- Run | Yrd Mat Sub Scr Fac Matter Collected 995 | 246 355 66 47 281 Remotely . | . . . . . Salvage Created 1020 | 100 532 107 . 281 Parts 51 | 1 37 7 . 6 Haulers Intercepted 3 | . 2 . . 1 Recyclers Shooed 2 | . 2 . . . Parts Field Recycled . | . . . . . Retrieved Matter . | . . . . . Parts Self-Destructed 7 | . . 7 . . Prevented . | . . . . . Parts Restored . | . . . . . Kills | -11 -10 -10 -7 -5 ------- Run | Yrd Mat Sub Scr Fac Combat Hostiles Destroyed 16 | . 11 2 . 3 Guns 12 | . 7 2 . 3 Cannons 4 | . 4 . . . Classes Destroyed 8 | 1 6 1 . . Worker 2 | . 2 . . . Builder 1 | . 1 . . . Hauler 3 | . 2 . . 1 Recycler 2 | 1 1 . . . Watcher 1 | . 1 . . . Swarmer 5 | . 5 . . . Grunt 9 | . 6 . . 3 Subdweller 2 | . . 2 . . Best Kill Streak 3 | 1 3 1 . 2 Combat Bots Only 3 | . 3 1 . 2 Max Kills in Single Turn 1 | 1 1 1 . 1 Gunslinging . | . . . . . Exploded . | . . . . . Melee . | . . . . . Uniques/NPCs Destroyed . | . . . . . Combat | -11 -10 -10 -7 -5 -------- Run | Yrd Mat Sub Scr Fac Hostile Shots Fired 256 | . 73 17 . 166 Missed 89 | . 24 5 . 60 Hits 167 | . 49 12 . 106 Projectile 167 | . 49 12 . 106 Critical Strikes 4 | . 2 . . 2 Damage Taken 2664 | . 515 314 . 1835 Core 1182 | . 115 64 . 1003 Absorbed by Shields . | . . . . . Redirected to Shielding 42 | . . 15 . 27 Core Remaining (%) 64 | 100 . . 28 . Volleys Fired 103 | 6 69 13 . 15 Largest 3 | 1 2 2 . 3 Hottest 88 | 20 80 88 . 78 Shots Fired 190 | 6 115 24 . 45 Gun 157 | 6 82 24 . 45 Cannon 33 | . 33 . . . Launcher . | . . . . . Special . | . . . . . Kinetic 144 | 6 82 11 . 45 Thermal 46 | . 33 13 . . Explosive . | . . . . . Electromagnetic . | . . . . . Robot Hit Streak 12 | 3 12 6 . 9 Robot Miss Streak 4 | 1 4 2 . 4 Penetration Max . | . . . . . Secondary Targets . | . . . . . Shots Hit Robots 120 | 5 71 18 . 26 Core Hits 46 | 2 29 4 . 11 Critical Kills 1 | . 1 . . . Critical Parts Destroyed . | . . . . . Critical Strikes 1 | . 1 . . . Destroy 1 | . 1 . . . Melee Attacks . | . . . . . Impact . | . . . . . Slashing . | . . . . . Piercing . | . . . . . Sneak Attacks . | . . . . . Combat Hostiles . | . . . . . Follow-up Attacks . | . . . . . Damage Inflicted 1828 | 67 892 374 . 495 Guns 1490 | 67 554 374 . 495 Cannons 338 | . 338 . . . Explosions . | . . . . . Melee . | . . . . . Ramming . | . . . . . Kinetic 1261 | 67 554 145 . 495 Thermal 567 | . 338 229 . . Explosive . | . . . . . Electromagnetic . | . . . . . Impact . | . . . . . Slashing . | . . . . . Piercing . | . . . . . Highest Corruption 3 | . 3 3 3 . Average Corruption 2 | . 2 3 3 . Corruption Purged . | . . . . . Corruption Blocked . | . . . . . Effects 24 | . 2 4 18 . Message Errors 4 | . . 1 3 . Matter Fused 5 | . 2 . 3 . Heat Flow Errors 3 | . . 1 2 . Energy Discharges 6 | . . . 6 . Data Loss (minor) 3 | . . 1 2 . Data Loss (major) 2 | . . . 2 . Alerts 1 | . . 1 . . Overload Shots . | . . . . . Overflow Damage . | . . . . . Projectiles . | . . . . . Explosions . | . . . . . Melee . | . . . . . Knockbacks . | . . . . . Impact . | . . . . . Kinetic . | . . . . . Secondary . | . . . . . Self-Inflicted Damage . | . . . . . Shots . | . . . . . Rammed 1 | . 1 . . . Targets Rammed 1 | . 1 . . . Kicked . | . . . . . Crushed . | . . . . . Highest Temperature 336 | . 336 117 134 . Average Temperature 60 | . 67 19 66 . Received Heat Transfer 525 | . 228 99 . 198 Siege Activations . | . . . . . Martial Activations . | . . . . . Shielding Activations . | . . . . . Robots Disrupted . | . . . . . Combat Hostiles . | . . . . . Robots Corrupted . | . . . . . Combat Hostiles . | . . . . . Parts Fried . | . . . . . Impact Corruptions . | . . . . . Robots Melted . | . . . . . Combat Hostiles . | . . . . . Parts Melted 3 | . 3 . . . Heat Transferred 978 | . 703 275 . . Parts Sabotaged . | . . . . . Parts Stolen . | . . . . . Parts Stripped . | . . . . . Power Chain Reactions . | . . . . . Alert | -11 -10 -10 -7 -5 ------- Run | Yrd Mat Sub Scr Fac Maximum Alert Level . | . . . . . Low Security (%) 100 | 100 100 . . 100 Level 1 . | . . . . . Level 2 . | . . . . . Level 3 . | . . . . . Level 4 . | . . . . . Level 5 . | . . . . . High Security . | . . . . . Max Security . | . . . . . Peak Influence 115 | 5 115 . . 40 Initial . | . . . . . Average 22 | . 32 . . 4 Influence Increases 459 | 5 362 . . 92 Destroy 0b10 Robot/C 280 | . 220 . . 60 Destroy 0b10 Robot/NC 45 | 5 35 . . 5 Destroy Leader 58 | . 46 . . 12 Disable Machine 30 | . 15 . . 15 Destroy Structure 1 | . 1 . . . Lose Combat Pursuer 45 | . 45 . . . Influence Decreases 459 | 5 347 15 . 92 Entered New Map 8 | . . 8 . . Time Decay 441 | 5 337 7 . 92 Lost Part 10 | . 10 . . . Squads Dispatched 4 | . 2 . . 2 Investigation 1 | . 1 . . . Extermination . | . . . . . Reinforcement 3 | . 1 . . 2 Assault . | . . . . . Garrison . | . . . . . Intercept . | . . . . . Searches Triggered . | . . . . . Construction Impeded . | . . . . . Haulers Reinforced 1 | . . . . 1 Active Scanning Responses . | . . . . . Cargo Convoy Interrupts . | . . . . . Stealth | -11 -10 -10 -7 -5 --------- Run | Yrd Mat Sub Scr Fac Distress Signals 2 | . 1 . . 1 Communications Jammed . | . . . . . Distress Signals . | . . . . . Times Spotted 30 | . 19 2 . 9 Peak Tracking Total 6 | . 5 2 . 6 Tactical Retreats 2 | . 2 . . . Traps | -11 -10 -10 -7 -5 ------- Run | Yrd Mat Sub Scr Fac Traps Triggered 7 | . 7 . . . Indirectly . | . . . . . Trap Hack Attempts . | . . . . . Triggered . | . . . . . Disarmed . | . . . . . Reprogrammed . | . . . . . Reused . | . . . . . Traps Extracted . | . . . . . Installed . | . . . . . Triggered . | . . . . . Machines | -11 -10 -10 -7 -5 ---------- Run | Yrd Mat Sub Scr Fac Machines Disabled 2 | . 1 . . 1 Max in Single Turn 1 | . 1 . . 1 Machines Repaired . | . . . . . Machines Dismantled . | . . . . . Machines Sabotaged . | . . . . . Overloaded Fab Kills . | . . . . . Hacking | -11 -10 -10 -7 -5 --------- Run | Yrd Mat Sub Scr Fac Machines Accessed 8 | . 4 . 2 2 Terminals 3 | . 2 . . 1 Fabricators 1 | . . . . 1 Repair Stations . | . . . . . Recycling Units 2 | . 2 . . . Scanalyzers . | . . . . . Garrison Access . | . . . . . Total Hacks 22 | . 7 . 13 2 Successful 16 | . 2 . 13 1 Failed 6 | . 5 . . 1 Catastrophic . | . . . . . Database Lockouts . | . . . . . Manual 3 | . 2 . 1 . Terminals 5 | . 4 . . 1 Fabricators 1 | . . . . 1 Repair Stations . | . . . . . Recycling Units 3 | . 3 . . . Scanalyzers . | . . . . . Garrison Access . | . . . . . Terminal Hacks 14 | . . . 13 1 Record 13 | . . . 13 . Recall Investigation 1 | . . . . 1 Fabricator Hacks . | . . . . . Repair Station Hacks . | . . . . . Recycling Unit Hacks 2 | . 2 . . . Process 1 | . 1 . . . Report Inventory 1 | . 1 . . . Scanalyzer . | . . . . . Garrison Access Hacks . | . . . . . Unauthorized Hacks . | . . . . . Terminals . | . . . . . Fabricators . | . . . . . Repair Stations . | . . . . . Recycling Units . | . . . . . Scanalyzers . | . . . . . Garrison Access . | . . . . . Data Cores Recovered . | . . . . . Used . | . . . . . Hacking Detections 4 | . 4 . . . Full Trace Events 1 | . 1 . . . Feedback Events . | . . . . . Feedback Blocked . | . . . . . Robot Schematics Acquired . | . . . . . Robots Built . | . . . . . Authchips . | . . . . . Time . | . . . . . Total Robot Build Rating . | . . . . . Part Schematics Acquired . | . . . . . Parts Built . | . . . . . Authchips . | . . . . . Time . | . . . . . Total Part Build Rating . | . . . . . Part Studies Acquired . | . . . . . Parts Repaired . | . . . . . Time . | . . . . . Parts Recycled . | . . . . . Recycled Matter . | . . . . . Retrieved Matter . | . . . . . Retrieved Components . | . . . . . Parts Scanalyzed . | . . . . . Part Schematics Acquired . | . . . . . Parts Damaged . | . . . . . Bothacking | -11 -10 -10 -7 -5 ------------ Run | Yrd Mat Sub Scr Fac Used RIF Installer . | . . . . . Robots Hacked . | . . . . . Non-combat . | . . . . . Combat . | . . . . . Robot Hacks Applied . | . . . . . Relay Couplers Released . | . . . . . Fabnet Peak Effective % . | . . . . . Robots Rewired . | . . . . . Allies Hacked . | . . . . . Hacks Repelled . | . . . . . Allies | -11 -10 -10 -7 -5 -------- Run | Yrd Mat Sub Scr Fac Total Allies . | . . . . . Largest Group . | . . . . . Highest-Rated Group . | . . . . . Highest-Rated Ally . | . . . . . Total Orders . | . . . . . Ally Attacks . | . . . . . Total Damage . | . . . . . Kills . | . . . . . Allies Corrupted . | . . . . . Allies Melted . | . . . . . Intel | -11 -10 -10 -7 -5 ------- Run | Yrd Mat Sub Scr Fac Active Infowar (turns) 686 | . 686 . . . Sensors 686 | . 686 . . . Robot Analysis Total . | . . . . . Derelict Logs Recovered 3 | . . 1 2 . Drone Launches . | . . . . . Drone Recoveries . | . . . . . Exploration | -11 -10 -10 -7 -5 ------------- Run | Yrd Mat Sub Scr Fac Turns Passed 3117 | 110 1205 290 988 524 Spaces Moved 1877 | 63 600 147 817 250 Core 35 | 21 11 . . 3 Treads 467 | 42 425 . . . Legs 1375 | . 164 147 817 247 Wheels . | . . . . . Hover . | . . . . . Flight . | . . . . . Fastest Speed 50 | 50 100 120 120 120 Average Speed 135 | 123 148 156 120 142 Slowest Speed 350 | 160 300 190 120 350 Overloaded Moves . | . . . . . Propulsion Burnouts . | . . . . . Robots Hopped . | . . . . . Potential Cave-ins . | . . . . . Cave-ins Triggered . | . . . . . Exploration Rate (%) 28 | 3 62 12 59 8 Regions Visited 4 Branch Regions 2 Pre-discovered Areas 2 | . . . 2 . Known Exits Taken . | . . . . . Unknown Exits Taken 4 | 1 1 1 1 . Scrap Searched 2 | . . . 2 . Spaces Dug . | . . . . . Terrain Destroyed . | . . . . . Melee . | . . . . . Projectile . | . . . . . AOE . | . . . . . Terrain Rammed . | . . . . . Walls Destroyed . | . . . . . Machines Disabled . | . . . . . Actions | -11 -10 -10 -7 -5 --------- Run | Yrd Mat Sub Scr Fac Total 2292 | 89 804 184 826 389 Wait 216 | 10 94 10 . 102 Move 1873 | 62 599 146 816 250 Hop . | . . . . . Pick Up 42 | 6 20 7 4 5 Fast Attach . | . . . . . Attach 29 | 5 13 2 . 9 Detach 2 | . . . 2 . Swap 10 | . 4 3 1 2 Drop 16 | . 4 3 3 6 Fire 103 | 6 69 13 . 15 Melee . | . . . . . Ram . | . . . . . Kick . | . . . . . Crush 1 | . 1 . . . Escape Stasis . | . . . . . Rewire . | . . . . . Trap . | . . . . . Miscellaneous . | . . . . . Route ------- -11/Scrapyard -10/Materials (discovered 3 exits: [*Mat] / [*Min] / [*Sub]) -10/Subcaves -7/Scraptown -5/Factory History --------- Turn | Location | Event 8 | -11/Scrapyard | Discovered new exit (range 13) 111 | -11/Scrapyard | Entered Materials 142 | -10/Materials | Discovered new exit (range 5) 311 | -10/Materials | Build established: Mutant 353 | -10/Materials | Discovered new exit (range 8) 471 | -10/Materials | Discovered new exit (range 16) 1316 | -10/Materials | Entered Subcaves 1317 | -10/Subcaves | Approached by a straggling Scientist 1320 | -10/Subcaves | Shifting Twisted Machinery released Sub. Laser 1342 | -10/Subcaves | Shifting Twisted Machinery released Barrage Gun 1389 | -10/Subcaves | Core integrity fell below 50% 1504 | -10/Subcaves | Scientist uncovered a shortcut to Scraptown 1521 | -10/Subcaves | Shifting Twisted Machinery released Sub. Optics 1548 | -10/Subcaves | Shifting Twisted Machinery released Barrage Gun 1606 | -10/Subcaves | Entered Scraptown 1986 | -7/Scraptown | Scanned Subdweller tech in exchange for log data 1990 | -7/Scraptown | Learned Research emergency access door positions 1991 | -7/Scraptown | Learned location of Armory (-3) 2040 | -7/Scraptown | Visited TADAMA 2070 | -7/Scraptown | Visited Comm Corps 2159 | -7/Scraptown | Learned location of Extension (-4) 2190 | -7/Scraptown | Heard Great Nut preacher, LISTEN AND RECITE! 2200 | -7/Scraptown | Visited Symbiants 2242 | -7/Scraptown | Visited IN-MT5's Study 2409 | -7/Scraptown | Visited UFD Registry 2429 | -7/Scraptown | Visited Awakened 2466 | -7/Scraptown | Visited Assassins FH 2522 | -7/Scraptown | Discovered new exit (range 11) 2594 | -7/Scraptown | Entered Factory 2594 | -5/Factory | Evolved 10 slots: Power x1, Propulsion x2, Utility x6, Weapon x1 2965 | -5/Factory | Build established: Tank 3082 | -5/Factory | Core integrity fell below 50% 3093 | -5/Factory | Lost 7 parts (3n1u3w) 3096 | -5/Factory | Core integrity fell below 20% 3118 | -5/Factory | Destroyed by S-27 Virus with Autogun Last Messages --------------- 03081_ Penetrated by Slug. 03085_ R-10 Processor collects Med. Storage Unit. 03087_ Penetrated by Slug. 03089_ R-10 Processor collects Gauss Cannon. 03090_ Penetrated by Slug. 03092_ R-10 Processor collects Core Shielding. 03093_ Penetrated by Slug. 03095_ Critical hit (Burn: +37). 03095_ Slug penetrates Wall. 03096_ R-10 Processor collects Matter Compressor. 03098_ S-27 Virus destroyed. 03098_ Slug penetrates Wall. 03098_ Discarded Targeting Computer. 03099_ R-10 Processor collects Adv. Heat Sink. 03104_ R-10 Processor collects VTOL Module. 03107_ Penetrated by Slug. 03110_ S-27 Virus destroyed. 03110_ Slug penetrates Wall. 03113_ Penetrated by Slug. 03115_ Slug penetrates Wall. Map ----- +----------------------------------------------------+ | ???????????????????????????????# #???????????????? | | ???????????????????????????????# #???????????????? | | ???????????????????????????????# #???????????????? | | ???????????????????????????????# #???????????????? | | ???????????????????????????????# #???????????????? | | ????????????????????????????####+#########???????? | | ??????????????????##????????# #????? | | ??????????????????# ??????# T #????# | | ??????????????????# ????# #????# | | ??????????????????# ??# #????# | | ??????????????????# # """"""""" #????# | | ??????????????????# + #????# | | ??????????????????# # """"""""" #????# | | ??????????????????# # #????# | | ??????????????????# s ?# """"""""" #????# | | ??????????????????# ?# #????# | | ??????????????????### ??# """"""""" #????# | | ????????????????????# #?# #????# | | ????????????????????# ##########+#####????# | | ????????????????????# # #?###### | | ????????????????????# # ### | | ????????????????????# # R | | ???????????########## # ### | | ?????????? u # #?# ### # | | ?????????? # [ #?# #?# # | | ?????????? @Y = #?# #?# # | | ?????????? = #=[ #?# #?# # | | ?????????? =#* #?# ###+# | | ??????????? ###### # #?# # | | ??????????? ??T"???# # #?# # "" | | ???????????? ???? "????# # #?# # "" | | ????????????????? ?????# ################ ^ # "" | | ????????????????????????# #??# # # "" | | ????????????????????????# #??# """"" # # | | ?????????????????????????+???# """F"" # # "" | | ????????????????????????? ???# """ "" # # "" | | ????????????????????????? ???# # # "" | | ????????????????????????? ???# # + "" | | ????????????????????????? ???########+#### # | | ????????????????????????? ????????# ## # | | ????????????????????????? ????????# " ##### | | ??????????????????????????????????# "T !* | | ??????????????????????????????????# ##### | | ??????????????????????????????????# [ ##+####### | | ??????????????????????????????????### ### *!= | | ????????????????????????????????????# #?# * * | | ????????????????????????????????????# #?# !* | | ????????????????????????????????????# #?# """"""" | | ????????????????????????????????????# #?# """"""" | | ????????????????????????????????????# #?# """"""" | +----------------------------------------------------+ Best States ------------- Heat Dissipation 67 Energy Generation 25 Energy Capacity 250 Matter Stores 300 Matter Capacity 550 Sight Range 16 Robot Scan Range 14 Terrain Scan Density 10 Armor Coverage 225 Core Shielding 20 Evasion (%) 55 Targeting Accuracy 5 Recoil Reduction 2 Item Schematics ----------------- None Robot Schematics ------------------ None Fabricated ------------ Nothing Repaired ---------- Nothing Studied --------- None Alien Tech Used ----------------- None Achievements -------------- Civilization 2243 Nice Directions, Buddy Challenges ------------ None Game ------ Seed SpacefoldConstructDiverter Manual? 0 Play Time 00:28:19 Cumulative 8.2 hours Start 2026.07.07 @ 15:05:12 End 2026.07.07 @ 15:29:57 Sessions 1 Manual Loads 0 Difficulty Rogue Special Mode None Game No. 10 Rogue 7 Adventurer 0 Explorer 3 Win Type - Total 0 Types 0/0/0/0/0/0/0/0/0/0 Lore% 11 Gallery% 10 Achievement% 14 Wizard Run 0 Options --------- Layout 0 ASCII 0 Keyboard 0 Movement Mouse Keybinds 0 Fullscreen 1 Font 18/SmallcapsGlow Map View 76x50 Zoom Use 9% Tactical HUD 1 Map Filters NONE Filters NONE Steam 1 RUN: 5b4507ad-d939-4f55-8efe-6858d4530aaa